Date,Description,Category,Cost,Currency,Person3,Person1,Person2

2022-04-02,Other pizza stuff,Restaurant,4.71,EUR,3.14,-1.57,-1.57
2022-04-08,Pizza,Restaurant,10.63,EUR,7.08,-3.54,-3.54
2022-04-08,Rewe,Lebensmittel,5.39,EUR,5.39,-2.69,-2.70
2022-04-10,Oven ,Allgemein,20.95,EUR,13.97,-6.98,-6.99
2022-04-11,Strawberries + cream ,Lebensmittel,6.48,EUR,4.32,-2.16,-2.16
2022-04-12,strawberries second,Allgemein,4.99,EUR,-1.67,3.33,-1.66
2022-04-12,kitchenthing,Allgemein,35.00,EUR,-11.67,23.33,-11.66
2022-04-21,beer,Alkohol,63.27,EUR,0.00,31.63,-31.63
2022-04-25,Burgers,Restaurant,31.20,EUR,-10.40,20.80,-10.40
2022-04-30,Pizza stuff,Restaurant,13.36,EUR,8.91,-4.45,-4.46
2022-05-03,Bananas,Lebensmittel,1.95,EUR,1.95,-0.97,-0.98
2022-05-03,oil,Lebensmittel,2.00,EUR,-0.66,1.33,-0.67
2022-05-07,"Stuff (pizza stone, food foil, baking paper, etc.)",Restaurant,15.00,EUR,-5.00,10.00,-5.00
2022-05-07,Coke,Allgemein,1.19,EUR,-0.39,0.79,-0.40
2022-05-07,Pizza stuff,Restaurant,12.12,EUR,8.08,-4.04,-4.04
2022-05-07,Bowling,Sport,55.00,EUR,-18.33,36.67,-18.34
2022-05-09,Zewa + toiletpaper,Allgemein,5.94,EUR,3.96,-1.98,-1.98
2022-05-12,"toiletpaper, papertowel, more flour, sponges, garbage bags, etc",Müll,7.45,EUR,-2.48,4.97,-2.49
2022-05-12,aldi,Lebensmittel,42.00,EUR,0.00,21.00,-21.00
2022-05-13,rewe,Lebensmittel,29.36,EUR,19.58,-9.79,-9.79
2022-05-13,Rewe luva,Lebensmittel,10.50,EUR,10.50,-5.25,-5.25
2022-05-13,olive oil,Lebensmittel,3.99,EUR,-3.99,3.99,0.00
2022-05-18,rewe,Lebensmittel,24.00,EUR,-8.00,16.00,-8.00
2022-05-22,Pizza stuff,Restaurant,13.81,EUR,-4.61,-4.60,9.21
2022-05-23,Zewa,Allgemein,2.25,EUR,1.50,-0.75,-0.75
2022-05-28,coffee,Restaurant,36.00,EUR,-12.00,24.00,-12.00
2022-05-28,rewe,Lebensmittel,13.68,EUR,-4.56,9.12,-4.56
2022-05-30,Rewe,Lebensmittel,7.41,EUR,4.94,-2.47,-2.47
2022-06-02,Rewe,Lebensmittel,3.45,EUR,2.30,-1.15,-1.15
2022-06-04,rewe,Lebensmittel,23.19,EUR,-7.73,15.46,-7.73
2022-06-04,rewe,Lebensmittel,33.00,EUR,0.00,16.50,-16.50
2022-06-04,strawberrys,Allgemein,6.00,EUR,0.00,3.00,-3.00
2022-06-04,cash,Allgemein,4.00,EUR,0.00,4.00,-4.00
2022-06-07,socks,Allgemein,13.99,EUR,0.00,13.99,-13.99
2022-06-08,"Quiche, sahne, eggs,",Lebensmittel,6.66,EUR,4.44,-2.22,-2.22
2022-06-08,ceasar.salad,Allgemein,8.00,EUR,-2.67,5.33,-2.66
2022-06-11,rewe,Lebensmittel,9.00,EUR,0.00,4.50,-4.50
2022-06-13,Labyrinth,Allgemein,30.00,EUR,0.00,15.00,-15.00
2022-06-14,lava grill,Allgemein,12.00,EUR,0.00,6.00,-6.00
2022-06-14,cash,Allgemein,4.00,EUR,0.00,4.00,-4.00
2022-06-15,airplanewater,Allgemein,3.00,EUR,0.00,1.50,-1.50
2022-06-15,shop,Lebensmittel,17.00,EUR,0.00,8.50,-8.50
2022-06-16,body Board,Allgemein,6.00,EUR,-2.00,4.00,-2.00
2022-06-17,Vacuum cleaner,Haushaltsgegenstände,14.00,EUR,0.00,7.00,-7.00
2022-06-17,stuff,Allgemein,5.42,EUR,0.00,2.71,-2.71
2022-06-29,Wrap stuff,Allgemein,5.69,EUR,-1.89,3.79,-1.90
2022-06-29,Coffee,Restaurant,4.29,EUR,-1.43,2.86,-1.43
2022-07-03,Pizza stuff,Restaurant,10.82,EUR,-3.60,-3.61,7.21
2022-07-03,Choco cookie,Allgemein,1.99,EUR,-1.99,0.00,1.99
2022-07-03,Ja napkins,Allgemein,1.35,EUR,-1.35,0.00,1.35
2022-07-04,toothpaste ,Haushaltsgegenstände,3.95,EUR,0.00,1.98,-1.98
2022-07-05,toilet paper,Haushaltsgegenstände,3.50,EUR,-1.16,2.33,-1.17
2022-07-05,rewe,Lebensmittel,8.20,EUR,-2.73,5.47,-2.74
2022-07-07,rewe,Lebensmittel,22.00,EUR,-7.33,14.67,-7.34
2022-07-08,rastamar stuffios,Allgemein,18.50,EUR,0.00,9.25,-9.25
2022-07-08,hi,Allgemein,0.01,EUR,0.00,0.01,-0.01
2022-07-08,Hi!,Allgemein,0.01,EUR,0.00,-0.01,0.01
2022-07-10,pizza,Restaurant,21.99,EUR,-7.33,14.66,-7.33
2022-07-10,rewe,Lebensmittel,17.00,EUR,0.00,8.50,-8.50
2022-07-13,Rewe (10% added),Lebensmittel,7.20,EUR,4.80,-2.40,-2.40
2022-07-18,Pizza stuff + flour,Restaurant,17.50,EUR,-5.83,-5.83,11.66
2022-07-23,"dishsoap, garlic, zewa",Lebensmittel,4.50,EUR,-1.50,3.00,-1.50
2022-07-26,toilet paper,Haushaltsgegenstände,4.50,EUR,-1.50,3.00,-1.50
2022-07-26,Burrata,Allgemein,1.59,EUR,-1.59,1.59,0.00
2022-07-26,"Minced meat, cucumber, ",Allgemein,6.00,EUR,-3.00,3.00,0.00
2022-07-29,rewe longterm stuff,Lebensmittel,5.00,EUR,0.00,2.50,-2.50
2022-07-30,rewe,Lebensmittel,17.50,EUR,-8.75,8.75,0.00
2022-07-30,frying oil,Lebensmittel,5.00,EUR,-1.67,3.33,-1.66
2022-08-01,Tortelloni,Allgemein,1.52,EUR,1.52,-1.52,0.00

2022-08-01,Gesamtbilanz, , ,EUR,-42.43,339.16,-296.73

